bitfinex/quotes_BTCUSD_20260215
["timestamp","ask_amount","ask_price","bid_price","bid_amount"]
[1771113775456,0.02312783,69823.0,69822.0,0.001]
[1771113775805,0.02312783,69823.0,69820.0,0.00016]
[1771113776216,0.02312783,69823.0,69822.0,0.015]
[1771113776630,0.0004,69829.0,69820.0,0.00016]
[1771113776850,0.005,69823.0,69822.0,0.08561007]
[1771113777229,0.0004,69829.0,69825.0,0.07160717]
[1771113777857,0.0004,69829.0,69826.0,0.07160614]
[1771113778062,0.0004,69829.0,69825.0,0.0716072]
[1771113779060,0.0004,69829.0,69824.0,0.07160833]
[1771113779202,0.0004,69829.0,69825.0,0.07160732]
[1771113779601,0.0104,69829.0,69825.0,0.07460732]
[1771113779801,0.00044,69834.0,69824.0,0.02386305]
[1771113780019,0.00044,69834.0,69827.0,0.07160532]
[1771113780239,0.009,69829.0,69827.0,0.07160532]
[1771113780426,0.00044,69834.0,69829.0,0.0716034]
[1771113780773,0.002,69829.0,69827.0,0.07160532]
[1771113781190,0.07160238,69831.0,69824.0,0.0011187]
[1771113781391,0.09473021,69831.0,69824.0,0.0001187]
[1771113781593,0.02312783,69830.0,69817.0,0.0002]
[1771113781773,0.07160821,69825.0,69817.0,0.07181481]
[1771113782001,0.02579639,69830.0,69817.0,0.07181481]
[1771113782002,0.02312783,69824.0,69820.0,0.07193206]
[1771113782206,0.07160565,69827.0,69820.0,0.07193206]
[1771113782612,0.09473348,69827.0,69824.0,0.001]
[1771113782892,0.002,69825.0,69824.0,0.001]
[1771113783233,0.09473348,69827.0,69824.0,0.001]
[1771113783437,0.09673348,69827.0,69824.0,0.001]
[1771113783862,0.09473348,69827.0,69820.0,0.07193206]
[1771113784062,0.001,69825.0,69824.0,0.017]
[1771113785682,0.09473348,69827.0,69820.0,0.07193243]
[1771113786114,0.09573348,69827.0,69824.0,0.017]
[1771113786528,0.09473348,69827.0,69820.0,0.07193243]
[1771113787137,0.001,69825.0,69824.0,0.038]
[1771113787651,0.09473266,69828.0,69821.0,0.07161142]
[1771113787850,0.002,69827.0,69821.0,0.07161142]
[1771113788266,4e-05,69822.0,69821.0,0.07157142]
[1771113789709,0.02316783,69822.0,69817.0,0.07181537]
[1771113790350,0.02316783,69822.0,69818.0,0.07161455]
[1771113790576,0.02616783,69822.0,69821.0,0.047]
[1771113790817,4e-05,69822.0,69818.0,0.07161455]
[1771113791039,0.00304,69822.0,69818.0,0.07161455]
[1771113791256,0.00304,69822.0,69819.0,0.07161306]
[1771113792141,0.00304,69822.0,69820.0,0.07161193]
[1771113792378,0.00304,69822.0,69820.0,0.07185953]
[1771113792379,4e-05,69822.0,69820.0,0.07185953]
[1771113792604,0.00304,69822.0,69821.0,0.047]
[1771113793019,4e-05,69822.0,69820.0,0.07185953]
[1771113793225,0.00404,69822.0,69820.0,0.11785953]
[1771113793423,4e-05,69822.0,69820.0,0.07185953]
[1771113793908,0.00304,69822.0,69821.0,0.11861169]
[1771113794114,4e-05,69822.0,69821.0,0.07161169]
[1771113794333,4e-05,69822.0,69821.0,0.07185929]
[1771113795540,0.00404,69822.0,69821.0,0.07185929]
[1771113795772,4e-05,69822.0,69821.0,0.07185929]
[1771113795955,0.0004,69829.0,69825.0,0.07160759]
[1771113796106,0.0004,69829.0,69827.0,0.07160509]
[1771113796320,0.0004,69829.0,69827.0,0.000107]
[1771113797135,0.0044,69829.0,69827.0,0.046107]
[1771113798205,0.0044,69829.0,69827.0,0.11771193]
[1771113798395,0.0004,69829.0,69827.0,0.000107]
[1771113798765,0.0044,69829.0,69827.0,0.046107]
[1771113798961,0.0004,69829.0,69827.0,0.000107]
[1771113799184,0.0004,69829.0,69827.0,0.046107]
[1771113799185,0.0044,69829.0,69827.0,0.046107]
[1771113799584,0.0004,69829.0,69827.0,0.000107]
[1771113799783,0.0004,69829.0,69827.0,0.046107]
[1771113800018,0.0044,69829.0,69827.0,0.046107]
[1771113800210,0.0004,69829.0,69827.0,0.000107]
[1771113801431,0.0044,69829.0,69827.0,0.046107]
[1771113801743,0.0004,69829.0,69827.0,0.000107]
[1771113802265,0.0044,69829.0,69827.0,0.046107]
[1771113803233,0.0044,69829.0,69827.0,0.046067]
[1771113803434,0.07160451,69828.0,69827.0,0.046067]
[1771113803562,0.07600451,69829.0,69827.0,0.046067]
[1771113804378,0.07200451,69829.0,69827.0,6.7e-05]
[1771113804785,0.07600451,69829.0,69827.0,0.046067]
[1771113804987,0.07200451,69829.0,69827.0,6.7e-05]
[1771113805393,0.0044,69829.0,69827.0,0.046067]
[1771113807167,0.07600409,69829.0,69827.0,0.046067]
[1771113807667,0.0044,69829.0,69827.0,0.046067]
[1771113808053,0.0004,69829.0,69827.0,6.7e-05]
[1771113808649,0.07600362,69829.0,69827.0,0.046067]
[1771113808858,0.07200362,69829.0,69827.0,6.7e-05]
[1771113809053,0.0044,69829.0,69827.0,0.046067]
[1771113809466,0.0004,69829.0,69827.0,6.7e-05]
[1771113809672,0.0044,69829.0,69827.0,0.046067]
[1771113810181,0.0004,69829.0,69827.0,6.7e-05]
[1771113811266,0.0034,69829.0,69827.0,0.047067]
[1771113811678,0.0004,69829.0,69827.0,6.7e-05]
[1771113811852,0.0034,69829.0,69827.0,0.047067]
[1771113812823,0.02490485,69822.0,69821.0,0.0002]
[1771113813097,0.09651551,69822.0,69821.0,0.0002]
[1771113814230,0.03204779,69829.0,69812.0,0.0002]
[1771113814231,0.02490485,69813.0,69812.0,0.0002]
[1771113815290,0.07161889,69814.0,69812.0,0.0002]
[1771113815722,0.07161981,69815.0,69812.0,0.0002]
[1771113815926,0.004,69813.0,69812.0,0.0442]
[1771113816128,0.07161981,69815.0,69812.0,0.0002]
[1771113817086,0.02494485,69826.0,69813.0,0.0716197]
[1771113817287,0.28643036,69825.0,69814.0,0.07161856]
[1771113817496,0.07161162,69822.0,69814.0,0.07161856]
[1771113817909,0.004,69815.0,69814.0,0.07161856]
[1771113818110,0.0716118,69821.0,69814.0,0.07161856]
[1771113818321,4e-05,69816.0,69814.0,0.07161856]
[1771113818525,4e-05,69816.0,69814.0,0.041]
[1771113818726,4e-05,69816.0,69814.0,0.11261815]
[1771113818936,4e-05,69816.0,69814.0,0.07161815]
[1771113819136,0.004,69815.0,69814.0,0.11561815]
[1771113820281,4e-05,69816.0,69814.0,0.07161815]
[1771113820646,4e-05,69816.0,69814.0,0.07261815]
[1771113820855,4e-05,69816.0,69814.0,0.07161815]
[1771113821258,4e-05,69816.0,69814.0,0.07261815]
[1771113821498,4e-05,69816.0,69814.0,0.07161815]
[1771113821925,4e-05,69816.0,69814.0,0.001]
[1771113822132,4e-05,69816.0,69814.0,0.07261806]
[1771113822338,4e-05,69816.0,69814.0,0.001]
[1771113822977,0.07161174,69821.0,69814.0,0.07261849]
[1771113823151,0.28639986,69833.0,69815.0,0.02737508]
[1771113823379,0.07164468,69828.0,69821.0,0.07161164]
[1771113823870,4e-05,69832.0,69825.0,0.07160661]
[1771113824076,4e-05,69832.0,69826.0,0.07160611]
[1771113824228,0.07164045,69832.0,69825.0,0.07160661]
[1771113824453,4e-05,69832.0,69823.0,0.05043871]
[1771113824678,0.02317183,69832.0,69821.0,0.07161077]
[1771113824884,0.02317183,69832.0,69821.0,0.07261077]
[1771113825069,0.07189423,69830.0,69823.0,0.07160936]
[1771113825486,0.07189423,69830.0,69825.0,0.01]
[1771113826135,0.07200349,69829.0,69825.0,0.01]
[1771113826596,0.07200349,69829.0,69823.0,0.07160936]
[1771113826801,0.0004,69829.0,69823.0,0.07160936]
[1771113827217,0.07200352,69829.0,69823.0,0.07160936]
[1771113827434,0.0004,69829.0,69817.0,0.02306363]
[1771113827636,0.07160725,69826.0,69825.0,0.008]
[1771113827842,0.07160725,69826.0,69819.0,0.07161305]
[1771113828420,0.07160725,69826.0,69823.0,0.001]
[1771113829171,0.07160725,69826.0,69819.0,0.07161305]
[1771113829546,0.07160725,69826.0,69819.0,0.07261305]
[1771113829895,0.07160725,69826.0,69819.0,0.07161305]
[1771113830298,0.07160725,69826.0,69825.0,0.01]
[1771113830500,0.07160772,69825.0,69818.0,0.28097291]
[1771113830923,0.07200697,69826.0,69819.0,0.09161358]
[1771113831125,0.07200697,69826.0,69819.0,0.07161358]
[1771113831325,0.07200697,69826.0,69819.0,0.07261358]
[1771113831530,0.07200697,69826.0,69825.0,0.012]
[1771113832128,0.0004,69826.0,69825.0,0.012]
[1771113832740,0.0004,69826.0,69820.0,0.07161263]
[1771113833423,4e-05,69822.0,69820.0,0.07161263]
[1771113834370,4e-05,69822.0,69820.0,0.08361263]
[1771113834574,4e-05,69822.0,69819.0,0.07161358]
[1771113835395,4e-05,69822.0,69820.0,0.07261271]
[1771113835608,4e-05,69822.0,69821.0,0.07161169]
[1771113836267,0.00044,69826.0,69823.0,0.07160964]
[1771113836716,0.07203884,69834.0,69820.0,0.07161271]
[1771113836717,0.0004,69837.0,69820.0,0.28644266]
[1771113836915,0.0004,69848.0,69834.0,4e-05]
[1771113837116,0.0004,69848.0,69837.0,0.12203297]
[1771113837325,0.07158703,69846.0,69837.0,0.12203318]
[1771113837535,0.07158703,69846.0,69839.0,0.07159304]
[1771113837743,0.0004,69848.0,69844.0,0.07158713]
[1771113837959,0.07158503,69847.0,69839.0,0.07159313]
[1771113838166,0.07198405,69848.0,69839.0,0.07159313]
[1771113838376,0.0004,69843.0,69841.0,0.07159029]
[1771113838990,0.00083603,69843.0,69841.0,0.07159029]
[1771113839351,0.00083603,69843.0,69840.0,0.0715916]
[1771113839756,0.00083603,69843.0,69841.0,0.001]
[1771113839914,0.00083603,69843.0,69840.0,0.0715916]
[1771113841431,0.00083603,69843.0,69830.0,0.00012]
[1771113841634,0.07159047,69842.0,69835.0,0.07159694]
[1771113841854,0.0947223,69842.0,69835.0,0.07159694]
[1771113842056,0.0947223,69842.0,69841.0,0.009]
[1771113842246,0.0947223,69842.0,69831.0,0.62948575]
[1771113842570,0.02313183,69842.0,69831.0,0.34308]
[1771113842818,0.07159323,69839.0,69830.0,0.00112]
[1771113843024,0.02313183,69838.0,69835.0,0.014]
[1771113843428,0.02313183,69838.0,69832.0,0.0715997]
[1771113843682,0.0947261,69838.0,69831.0,0.0835995]
[1771113844022,0.0947261,69838.0,69831.0,0.0845995]
[1771113844228,0.02313183,69838.0,69832.0,0.07160021]
[1771113845150,0.0947261,69838.0,69831.0,0.07260103]
[1771113845352,0.0947261,69838.0,69831.0,0.07160103]
[1771113845534,0.02313183,69837.0,69835.0,0.005]
[1771113845736,0.02313183,69837.0,69832.0,0.07160021]
[1771113845936,0.02313183,69837.0,69832.0,0.08360021]
[1771113846504,0.02313183,69837.0,69832.0,0.07160021]
[1771113846682,0.02313183,69837.0,69835.0,0.004]
[1771113846904,0.02313183,69837.0,69832.0,0.07160021]
[1771113847163,0.02313183,69837.0,69830.0,0.00012]
[1771113847366,0.07159631,69836.0,69830.0,0.00012]
[1771113847567,0.09472814,69836.0,69832.0,0.019]
[1771113848378,0.02317183,69834.0,69832.0,0.019]
[1771113848871,0.02317183,69834.0,69830.0,0.00012]
[1771113849290,0.02317183,69834.0,69832.0,0.018]
[1771113849413,0.02317183,69834.0,69830.0,0.00012]
[1771113849823,0.02317183,69834.0,69832.0,0.011]
[1771113850254,0.02317183,69834.0,69830.0,0.00012]
[1771113850447,0.02317183,69834.0,69830.0,0.02012]
[1771113851765,0.02317183,69834.0,69830.0,0.00012]
[1771113851980,0.02317183,69834.0,69832.0,0.012]
[1771113852361,0.02317183,69834.0,69830.0,0.00012]
[1771113852564,0.02317183,69834.0,69830.0,0.08972228]
[1771113852763,0.02317183,69834.0,69830.0,0.07172228]
[1771113853200,0.02317183,69834.0,69832.0,0.006]
[1771113853341,0.02317183,69834.0,69830.0,0.07192228]
[1771113853745,0.02317183,69834.0,69830.0,0.08392228]
[1771113853976,0.02317183,69834.0,69830.0,0.01332]
[1771113854425,0.02317183,69834.0,69830.0,0.01232]
[1771113854842,0.02317183,69834.0,69830.0,0.01332]
[1771113855048,0.02317183,69834.0,69830.0,0.00132]
[1771113855247,0.02317183,69834.0,69832.0,0.006]
[1771113855447,0.02317183,69834.0,69830.0,0.00132]
[1771113855864,0.02317183,69834.0,69830.0,0.01532]
[1771113856064,0.02317183,69834.0,69830.0,0.00032]
[1771113856372,0.02317183,69834.0,69832.0,0.009]
[1771113856734,4e-05,69834.0,69830.0,0.00032]
[1771113856929,4e-05,69834.0,69830.0,0.00132]
[1771113857320,0.07163845,69834.0,69830.0,0.00032]
[1771113857613,0.0716003,69833.0,69830.0,0.00032]
[1771113857999,0.0716003,69833.0,69830.0,0.01532]
[1771113858291,0.0716003,69833.0,69830.0,0.00032]
[1771113858438,0.0958828,69833.0,69830.0,0.00632]
[1771113858865,0.0958828,69833.0,69830.0,0.00032]
[1771113859098,0.0968828,69833.0,69830.0,0.00032]
[1771113859813,0.07160143,69831.0,69830.0,0.00032]
[1771113860401,0.07160076,69832.0,69830.0,0.00032]
[1771113861035,0.09588326,69832.0,69830.0,0.00032]
[1771113861390,0.07160143,69831.0,69830.0,0.00032]
[1771113861594,0.09688393,69831.0,69830.0,0.00032]
[1771113861948,0.09588393,69831.0,69830.0,0.00032]
[1771113862822,0.09588393,69831.0,69830.0,1e-08]
[1771113862993,0.1300075,69831.0,69830.0,1e-08]
[1771113863191,0.1250075,69831.0,69830.0,1e-08]
[1771113864773,0.09588393,69831.0,69830.0,1e-08]
[1771113864907,0.07160357,69829.0,69825.0,0.0001182]
[1771113867996,0.07160357,69829.0,69825.0,0.0051182]
[1771113870115,4e-05,69832.0,69826.0,0.07160627]
[1771113870319,4e-05,69834.0,69825.0,0.0051182]
[1771113870445,4e-05,69834.0,69828.0,0.07160352]
[1771113871551,4e-05,69834.0,69828.0,0.08760352]
[1771113871985,4e-05,69834.0,69828.0,0.07260352]
[1771113872164,4e-05,69834.0,69828.0,0.08560352]
[1771113872389,4e-05,69834.0,69828.0,0.08460352]
[1771113872591,4e-05,69834.0,69831.0,0.07160074]
[1771113873257,0.0248425,69840.0,69831.0,0.07160074]
[1771113873258,4e-05,69842.0,69834.0,0.02862063]
[1771113873429,4e-05,69842.0,69836.0,0.07159598]
[1771113873902,4e-05,69842.0,69834.0,0.07159783]
[1771113874125,4e-05,69842.0,69835.0,0.07159733]
[1771113874331,4e-05,69842.0,69837.0,0.07159437]
[1771113875745,0.00044,69848.0,69843.0,0.07158858]
[1771113876146,0.0004,69841.0,69840.0,0.07159209]
[1771113876318,0.0004,69841.0,69831.0,0.43005469]
[1771113876644,0.0004,69841.0,69840.0,0.07159209]
[1771113878107,0.0004,69841.0,69840.0,0.08159209]
[1771113878345,0.0004,69841.0,69840.0,0.08147209]
[1771113879049,0.0004,69841.0,69840.0,0.08247209]
[1771113880340,0.0004,69841.0,69840.0,0.07247209]
[1771113880543,0.0004,69841.0,69840.0,0.08247209]
[1771113880796,0.0004,69841.0,69840.0,0.07147209]
[1771113880997,0.0004,69841.0,69840.0,0.07247209]
[1771113881204,0.0004,69841.0,69840.0,0.08447209]
[1771113881425,0.0004,69841.0,69840.0,0.07247209]
[1771113881629,0.0004,69841.0,69840.0,0.08247209]
[1771113881849,0.0004,69841.0,69840.0,0.08347209]
[1771113882067,4e-05,69842.0,69841.0,0.07159118]
[1771113884394,4e-05,69842.0,69841.0,0.09059118]
[1771113884647,4e-05,69842.0,69841.0,0.07159118]
[1771113884819,4e-05,69842.0,69841.0,0.07259118]
[1771113885030,4e-05,69842.0,69841.0,0.09159118]
[1771113885268,4e-05,69842.0,69841.0,0.09059118]
[1771113885450,4e-05,69842.0,69841.0,0.09159118]
[1771113886006,4e-05,69842.0,69841.0,0.09059118]
[1771113886378,4e-05,69842.0,69841.0,0.09159118]
[1771113886580,0.0004,69847.0,69844.0,0.07158721]
[1771113886852,0.00048112,69847.0,69844.0,0.07158721]
[1771113888967,0.00048112,69847.0,69846.0,0.07158606]
[1771113890943,0.00044,69848.0,69847.0,0.07158503]
[1771113891076,1e-08,69848.0,69847.0,0.07158503]
[1771113891298,0.03050348,69851.0,69840.0,0.00016]
[1771113891501,0.02270382,69845.0,69840.0,0.00024112]
[1771113891717,0.02270382,69845.0,69840.0,0.07183322]
[1771113891920,0.07159128,69841.0,69834.0,0.0716377]
[1771113892159,0.02270382,69840.0,69835.0,0.07159649]
[1771113892387,0.02270382,69840.0,69837.0,0.07159505]
[1771113892998,0.02270382,69840.0,69838.0,0.07159421]
[1771113893194,0.02270382,69840.0,69836.0,0.07159552]
[1771113893802,0.02270382,69839.0,69836.0,0.07159552]
[1771113894004,0.02255,69839.0,69837.0,0.07159477]
[1771113894411,0.02255,69839.0,69838.0,0.07159426]
[1771113894800,0.02255,69839.0,69837.0,0.07159518]
[1771113894990,0.03755,69839.0,69837.0,0.07159518]
[1771113895192,0.03755,69839.0,69837.0,0.07259518]
[1771113895391,0.03755,69839.0,69838.0,0.07159426]
[1771113896173,0.02255,69839.0,69838.0,0.07159426]
[1771113896554,0.015,69839.0,69838.0,0.07159426]
[1771113896764,0.015,69839.0,69837.0,0.001]
[1771113896765,0.02278489,69841.0,69837.0,0.07259511]
[1771113897046,0.02278489,69841.0,69837.0,0.07159511]
[1771113897047,0.015,69839.0,69837.0,0.07159511]
[1771113897280,0.07158542,69847.0,69838.0,0.07159426]
[1771113897462,0.09428924,69847.0,69838.0,0.07259426]
[1771113897668,0.0715862,69846.0,69839.0,0.07159239]
[1771113897874,0.09429002,69846.0,69839.0,0.07159239]
[1771113900218,0.02270382,69845.0,69839.0,0.07159239]
[1771113900471,0.000132,69845.0,69841.0,0.07159096]
[1771113900647,0.000132,69845.0,69841.0,0.07202699]
[1771113901357,0.000132,69845.0,69841.0,0.00043603]
[1771113901773,0.02283582,69845.0,69841.0,0.00043603]
[1771113902154,0.0942937,69843.0,69841.0,0.00043603]
[1771113902354,0.0944257,69843.0,69841.0,0.00043603]
[1771113902524,0.02283582,69843.0,69841.0,0.00043603]
[1771113902921,0.2863786,69848.0,69843.0,0.07158913]
[1771113902922,4e-05,69848.0,69843.0,0.07158913]
[1771113903152,0.00048,69852.0,69842.0,0.07159016]
[1771113903348,0.00048,69852.0,69847.0,0.07158431]
[1771113903574,0.00044,69852.0,69848.0,0.07158396]
[1771113903745,0.00044,69852.0,69847.0,0.07158468]
[1771113903974,0.00044,69852.0,69848.0,0.07158377]
[1771113904303,0.00044,69852.0,69846.0,0.07158606]
[1771113904474,0.07158093,69851.0,69843.0,0.07158834]
[1771113904673,0.09472394,69852.0,69843.0,0.07158834]
[1771113904897,0.07158192,69851.0,69843.0,0.07158834]
[1771113905943,0.0004,69847.0,69843.0,0.07158834]
[1771113906279,0.0004,69847.0,69844.0,0.07158809]
[1771113906666,0.0004,69847.0,69843.0,0.07158912]
[1771113906801,0.0004,69847.0,69842.0,0.07158824]
[1771113907016,0.03090348,69847.0,69838.0,0.00024]
[1771113907217,0.02270382,69839.0,69835.0,0.27426975]
[1771113907446,4e-05,69848.0,69835.0,0.27426975]
[1771113907447,0.1713951,69883.0,69840.0,0.02414022]
[1771113907682,0.21424388,69889.0,69872.0,0.02414022]
[1771113907683,6.24e-05,69880.0,69872.0,0.02414022]
[1771113907895,0.0532073,69887.0,69874.0,0.28622686]
[1771113908108,0.0532073,69887.0,69872.0,0.02414022]
[1771113908109,0.02270382,69887.0,69872.0,0.02414022]
[1771113908319,0.02270382,69887.0,69872.0,0.05472185]
[1771113908520,0.02270382,69886.0,69875.0,0.07155609]
[1771113908718,0.02270382,69886.0,69872.0,6.24e-05]
[1771113908941,0.0001989,69889.0,69873.0,0.07155797]
[1771113908942,0.03050348,69882.0,69873.0,0.07155797]
[1771113909149,0.02270382,69881.0,69872.0,6.24e-05]
[1771113909572,0.02270382,69881.0,69872.0,0.0001686]
[1771113909794,0.00012,69880.0,69859.0,0.21976]
[1771113910008,0.02270382,69874.0,69865.0,0.07156638]
[1771113910236,0.02270382,69874.0,69868.0,0.07156337]
[1771113910441,0.03050348,69873.0,69859.0,0.21976]
[1771113910647,0.02270382,69870.0,69859.0,0.07157178]
[1771113910851,0.02270382,69868.0,69852.0,4e-05]
[1771113911091,0.02270382,69868.0,69863.0,0.07156813]
[1771113911471,0.02270382,69868.0,69852.0,4e-05]
[1771113911472,0.02270382,69868.0,69861.0,0.07156974]
[1771113911889,0.02270382,69868.0,69862.0,0.07156939]
[1771113912095,0.02283444,69868.0,69862.0,0.07156939]
[1771113912797,0.02283444,69868.0,69852.0,4e-05]
[1771113913010,0.02260334,69867.0,69852.0,4e-05]
[1771113913226,0.01110048,69856.0,69844.0,4e-05]
[1771113913451,0.02260334,69853.0,69840.0,0.00016]
[1771113913653,0.02260334,69853.0,69851.0,0.1712316]
[1771113913830,0.07157888,69853.0,69846.0,0.2140395]
[1771113914036,0.02260334,69852.0,69846.0,0.2140395]
[1771113914247,0.07158009,69852.0,69846.0,0.2140395]
[1771113914456,0.02260334,69849.0,69846.0,0.2140395]
[1771113914667,0.02260334,69849.0,69843.0,0.2140395]
[1771113914867,0.02260334,69849.0,69842.0,0.2140795]
[1771113915577,0.07158009,69852.0,69842.0,0.2140795]
[1771113915578,0.07158909,69844.0,69842.0,0.2140795]
[1771113915785,0.02260334,69843.0,69840.0,0.00016]
[1771113916000,0.09419452,69841.0,69840.0,0.00016]
[1771113916834,0.09419452,69841.0,69840.0,0.00059598]
[1771113917244,0.11719452,69841.0,69840.0,0.00059598]
[1771113917449,0.04560334,69841.0,69840.0,0.00059598]
[1771113917673,0.02360334,69841.0,69840.0,0.00059598]
[1771113917876,0.01299445,69841.0,69840.0,0.00059598]
[1771113918084,0.03559779,69841.0,69840.0,0.00059598]
[1771113918497,0.10718897,69841.0,69840.0,0.00059598]
[1771113918700,0.09369657,69839.0,69838.0,0.00024]
[1771113918904,0.02303879,69839.0,69838.0,0.00024]
[1771113919311,0.02303879,69839.0,69837.0,0.0003114]
[1771113919951,0.02043545,69839.0,69837.0,0.07190663]
[1771113920160,0.01512116,69838.0,69837.0,0.0003114]
[1771113922731,0.01512116,69838.0,69836.0,0.0002886]
[1771113922941,0.01512116,69838.0,69835.0,0.0700997]
[1771113923162,0.02712116,69838.0,69835.0,0.05782448]
[1771113923366,4e-05,69836.0,69832.0,0.03648659]
[1771113923568,4e-05,69836.0,69832.0,0.03401566]
[1771113923791,4e-05,69836.0,69832.0,0.03347579]
[1771113924206,4e-05,69836.0,69832.0,0.03328163]
[1771113924414,4e-05,69836.0,69832.0,0.10471349]
[1771113924641,0.02712116,69838.0,69836.0,0.07159533]
[1771113924882,0.02712116,69838.0,69832.0,0.11093524]
[1771113925124,0.0171156,69838.0,69833.0,0.07159858]
[1771113925543,0.0051156,69838.0,69833.0,0.07159858]
[1771113925976,0.0051156,69838.0,69837.0,0.07159528]
[1771113926181,0.0051156,69838.0,69837.0,0.110731]
[1771113926616,0.0051156,69838.0,69837.0,0.07159528]
[1771113927679,0.0051156,69838.0,69837.0,0.07259528]
[1771113928652,0.0051156,69838.0,69837.0,0.110731]
[1771113928977,0.0051156,69838.0,69837.0,0.112731]
[1771113929369,0.0051156,69838.0,69837.0,0.07159528]
[1771113929568,0.0051156,69838.0,69837.0,0.0022]
[1771113930325,0.0051156,69838.0,69837.0,0.0002]
[1771113930623,0.0051156,69838.0,69837.0,0.0032]
[1771113931771,0.0051156,69838.0,69837.0,0.07179528]
[1771113932978,0.02264334,69854.0,69840.0,0.02495269]
[1771113933184,4e-05,69854.0,69850.0,0.07158107]
[1771113933390,4e-05,69854.0,69849.0,0.07158273]
[1771113933592,4e-05,69854.0,69846.0,0.07158545]
[1771113933803,4e-05,69854.0,69849.0,0.03911972]
[1771113934363,4e-05,69854.0,69848.0,0.07158317]
[1771113935417,0.00204,69852.0,69849.0,0.11070236]
[1771113935621,4e-05,69852.0,69849.0,0.07158264]
[1771113935959,0.00304,69852.0,69850.0,0.07158149]
[1771113936382,4e-05,69852.0,69850.0,0.07158149]
[1771113936557,0.00204,69852.0,69850.0,0.07158149]
[1771113936790,4e-05,69852.0,69850.0,0.07158149]
[1771113936993,0.09417661,69859.0,69850.0,0.07158149]
[1771113936994,0.35560766,69864.0,69851.0,0.07158093]
[1771113937202,0.0004,69859.0,69855.0,0.11068778]
[1771113937373,0.0004,69859.0,69855.0,0.07717946]
[1771113937604,0.0004,69859.0,69856.0,0.03911172]
[1771113937818,1e-08,69866.0,69864.0,0.07156694]
[1771113938054,0.00013061,69866.0,69862.0,0.1106813]
[1771113938269,0.00013061,69866.0,69857.0,0.02495269]
[1771113938270,4e-05,69848.0,69841.0,0.28636257]
[1771113938492,4e-05,69852.0,69845.0,0.07158666]
[1771113938697,0.05008727,69851.0,69846.0,4e-05]
[1771113938899,0.02859356,69851.0,69846.0,4e-05]
[1771113939050,0.07157904,69853.0,69846.0,4e-05]
[1771113939262,0.07158195,69851.0,69846.0,4e-05]
[1771113939432,0.32697538,69860.0,69846.0,4e-05]
[1771113939433,0.05008826,69850.0,69846.0,4e-05]
[1771113939634,0.02859455,69850.0,69846.0,4e-05]
[1771113939832,0.001,69851.0,69846.0,4e-05]
[1771113940166,0.07258126,69851.0,69846.0,4e-05]
[1771113940407,0.05104748,69851.0,69846.0,4e-05]
[1771113940585,0.02955509,69851.0,69846.0,4e-05]
[1771113940985,0.07158001,69852.0,69846.0,4e-05]
[1771113941359,0.002,69851.0,69846.0,4e-05]
[1771113941767,0.07158001,69852.0,69846.0,4e-05]
[1771113941962,0.07158001,69852.0,69846.0,0.00404]
[1771113942188,0.07158001,69852.0,69846.0,4e-05]
[1771113942589,0.07158082,69853.0,69846.0,0.00504]
[1771113942793,0.07158082,69853.0,69846.0,4e-05]
[1771113943072,0.07158082,69853.0,69846.0,0.00504]
[1771113943762,0.07157991,69852.0,69846.0,0.00504]
[1771113944386,0.07157991,69852.0,69846.0,4e-05]
[1771113944612,0.07158115,69851.0,69846.0,4e-05]
[1771113945424,0.07158028,69852.0,69846.0,4e-05]
[1771113945621,0.07158124,69851.0,69846.0,4e-05]
[1771113945888,0.07198082,69853.0,69846.0,4e-05]
[1771113946445,0.0715821,69850.0,69846.0,4e-05]
[1771113947260,0.07158009,69852.0,69846.0,4e-05]
[1771113947518,0.07158009,69852.0,69846.0,0.00304]
[1771113947815,0.07158125,69851.0,69846.0,4e-05]
[1771113948006,0.07158125,69851.0,69846.0,0.01104]
[1771113948217,0.07158125,69851.0,69846.0,4e-05]
[1771113948502,0.07158125,69851.0,69846.0,0.00304]
[1771113948916,0.07158125,69851.0,69846.0,4e-05]
[1771113949056,0.07158125,69851.0,69846.0,0.00904]
[1771113949461,0.07158203,69850.0,69846.0,0.00904]
[1771113949894,0.07157991,69852.0,69846.0,0.00904]
[1771113950267,0.07157991,69852.0,69846.0,4e-05]
[1771113950693,0.07157991,69852.0,69846.0,0.00804]
[1771113950949,0.07157991,69852.0,69846.0,4e-05]
[1771113951155,0.00056,69860.0,69847.0,0.02261286]
[1771113951353,0.07213247,69860.0,69847.0,0.13117331]
[1771113951727,0.07157339,69859.0,69851.0,0.07157995]
[1771113951934,0.07157339,69859.0,69852.0,0.0715797]
[1771113953294,4e-05,69854.0,69853.0,0.10843495]
[1771113953521,4e-05,69854.0,69853.0,0.0595893]
[1771113953956,4e-05,69854.0,69853.0,0.13116818]
[1771113954406,4e-05,69854.0,69853.0,0.15816818]
[1771113955388,0.00056,69860.0,69855.0,0.07157581]
[1771113955729,0.00056,69860.0,69853.0,0.027]
[1771113955730,0.07157349,69859.0,69853.0,0.027]
[1771113956521,0.0721319,69860.0,69853.0,0.07157869]
[1771113956944,0.0721319,69860.0,69855.0,0.023]
[1771113957085,0.0721319,69860.0,69853.0,0.07157869]
[1771113957498,0.0721319,69860.0,69853.0,0.10157869]
[1771113957697,0.0721319,69860.0,69853.0,0.07157869]
[1771113957970,0.0721319,69860.0,69854.0,0.03697644]
[1771113958109,0.0721319,69860.0,69855.0,0.023]
[1771113958313,0.0721319,69860.0,69854.0,0.03697644]
[1771113958836,0.07157301,69859.0,69854.0,0.0595893]
[1771113960081,0.07157301,69859.0,69855.0,0.035]
[1771113960413,0.07157301,69859.0,69854.0,0.0595893]
[1771113960663,0.00056,69860.0,69855.0,0.03697644]
[1771113960883,0.00056,69860.0,69856.0,0.10855209]
[1771113961093,0.00056,69860.0,69856.0,0.03697644]
[1771113961309,0.002,69859.0,69856.0,0.03697644]
[1771113961502,0.00056,69860.0,69855.0,0.035]
[1771113961503,0.00056,69860.0,69855.0,0.07157585]
[1771113961660,0.00056,69860.0,69856.0,0.07157545]
[1771113961846,0.00256,69860.0,69856.0,0.07157545]
[1771113962249,0.00256,69860.0,69858.0,0.07157345]
[1771113962635,0.00256,69860.0,69859.0,0.07157273]
[1771113963041,0.00056,69860.0,69859.0,0.07157273]
[1771113963243,4e-05,69862.0,69861.0,0.07157069]
[1771113964552,0.00204,69862.0,69861.0,0.11457069]
[1771113964782,0.07157139,69861.0,69853.0,0.09419095]
[1771113964987,0.07161002,69862.0,69854.0,0.07157708]